bitfinex/quotes_SOLUSD_20240909
["timestamp","ask_amount","ask_price","bid_price","bid_amount"]
[1725917520823,45.12549,135.65,135.53,8.0284]
[1725917520824,8.1615,135.66,135.59,50.0]
[1725917521018,8.1615,135.66,135.6,1.47450949]
[1725917521329,21.0132,135.67,135.61,1.47433183]
[1725917521532,7.744,135.69,135.61,50.0]
[1725917521751,7.744,135.69,135.62,20.0]
[1725917522115,7.744,135.69,135.63,50.0]
[1725917522316,7.744,135.69,135.64,20.0]
[1725917522521,20.2591,135.71,135.65,50.0]
[1725917522738,7.9763,135.73,135.66,21.47381053]
[1725917523443,7.9763,135.73,135.67,50.0]
[1725917523620,7.9763,135.73,135.68,20.0]
[1725917525336,7.9763,135.73,135.65,20.0]
[1725917525544,7.9763,135.73,135.65,45.61694169]
[1725917526013,0.12549,135.72,135.65,45.61694169]
[1725917526521,45.12549,135.72,135.65,45.61694169]
[1725917526827,0.12549,135.72,135.65,45.61694169]
[1725917529009,0.12549,135.72,135.65,20.0]
[1725917533729,0.12549,135.72,135.63,25.61694169]
[1725917533730,45.12549,135.72,135.63,25.61694169]
[1725917534250,45.12549,135.72,135.62,50.0]
[1725917534937,45.12549,135.72,135.61,7.9176]
[1725917535239,45.12549,135.72,135.62,20.0]
[1725917535939,45.12549,135.72,135.61,20.0]
[1725917536138,0.12549,135.7,135.58,83.42464169]
[1725917536340,45.12549,135.7,135.58,83.42464169]
[1725917537627,45.12549,135.7,135.59,20.0]
[1725917538344,45.12549,135.7,135.58,83.42464169]
[1725917538733,45.12549,135.7,135.52,26.45354119]
[1725917538734,0.12549,135.68,135.56,75.61694169]
[1725917538926,45.12549,135.68,135.56,75.61694169]
[1725917539125,45.12549,135.68,135.58,50.0]
[1725917539548,45.12549,135.68,135.56,75.61694169]
[1725917540346,45.12549,135.68,135.57,20.0]
[1725917540721,45.12549,135.68,135.58,50.0]
[1725917540921,45.12549,135.68,135.59,20.0]
[1725917541945,45.12549,135.68,135.57,20.0]
[1725917542245,0.12549,135.66,135.57,20.0]
[1725917542542,45.12549,135.66,135.56,50.0]
[1725917542739,45.12549,135.66,135.54,83.65524169]
[1725917543526,45.12549,135.66,135.54,25.61694169]
[1725917543735,0.12549,135.64,135.54,75.11694169]
[1725917543947,0.12549,135.62,135.52,50.8365995]
[1725917544270,45.12549,135.62,135.52,50.8365995]
[1725917544546,45.12549,135.62,135.54,50.0]
[1725917545217,45.12549,135.62,135.52,0.8365995]
[1725917545422,45.12549,135.62,135.53,50.0]
[1725917546736,45.12549,135.62,135.54,20.0]
[1725917548449,45.12549,135.62,135.55,50.0]
[1725917548649,45.12549,135.62,135.56,20.0]
[1725917549153,45.12549,135.62,135.54,20.0]
[1725917551851,8.4737,135.61,135.52,0.8365995]
[1725917552027,45.12549,135.6,135.52,0.8365995]
[1725917552437,20.0528,135.59,135.52,0.8365995]
[1725917552641,45.12549,135.58,135.52,0.8365995]
[1725917556744,8.3363,135.57,135.52,0.8365995]
[1725917557054,0.12549,135.55,135.52,0.8365995]
[1725917558940,45.0,135.56,135.52,0.8365995]
[1725917559271,0.12549,135.56,135.52,0.8365995]
[1725917559449,45.12549,135.56,135.52,0.8365995]
[1725917559658,0.12549,135.54,135.52,0.8365995]
[1725917559856,45.12549,135.54,135.52,0.8365995]
[1725917563140,0.12549,135.52,135.41,16.01119915]
[1725917563331,20.1856,135.51,135.4,50.0]
[1725917563537,0.12549,135.5,135.4,50.0]
[1725917563832,45.12549,135.5,135.4,50.0]
[1725917564628,8.3213,135.49,135.38,50.0]
[1725917564828,45.12549,135.48,135.37,16.01119915]
[1725917565028,0.12549,135.46,135.36,50.0]
[1725917565230,45.12549,135.46,135.36,50.0]
[1725917565755,45.12549,135.46,135.34,66.86739666]
[1725917566162,20.1856,135.47,135.4,50.0]
[1725917566458,20.1856,135.47,135.41,20.0]
[1725917567855,20.1856,135.47,135.4,50.0]
[1725917568156,20.1856,135.47,135.41,20.0]
[1725917568334,20.1856,135.47,135.42,1.47650908]
[1725917568535,20.1856,135.47,135.43,1.47643072]
[1725917569347,20.1856,135.47,135.41,20.0]
[1725917569926,0.12549,135.46,135.41,20.0]
[1725917570134,45.12549,135.46,135.39,0.8365995]
[1725917571660,45.12549,135.46,135.39,20.8365995]
[1725917571837,45.12549,135.46,135.39,0.8365995]
[1725917572038,20.1856,135.47,135.39,20.8365995]
[1725917572232,0.12549,135.46,135.4,1.47678864]
[1725917572458,0.12549,135.46,135.39,20.8365995]
[1725917573056,0.12549,135.46,135.4,20.0]
[1725917573238,45.12549,135.46,135.39,0.8365995]
[1725917573739,0.12549,135.46,135.39,50.8365995]
[1725917573939,0.12549,135.46,135.4,20.0]
[1725917574952,45.12549,135.46,135.39,0.8365995]
[1725917576267,67.26549,135.46,135.39,0.8365995]
[1725917576751,0.12549,135.46,135.39,0.8365995]
[1725917577153,0.12549,135.46,135.4,1.47681545]
[1725917577737,0.12549,135.46,135.39,0.8365995]
[1725917578142,0.12549,135.46,135.4,1.47677627]
[1725917578342,0.12549,135.46,135.39,0.8365995]
[1725917579855,45.12549,135.46,135.39,0.8365995]
[1725917580243,20.1856,135.47,135.39,50.8365995]
[1725917580444,20.1856,135.47,135.4,20.0]
[1725917581441,0.12549,135.46,135.39,0.8365995]
[1725917581637,67.26549,135.46,135.39,0.8365995]
[1725917582162,7.9616,135.45,135.39,0.8365995]
[1725917582335,0.12549,135.43,135.39,0.8365995]
[1725917582540,45.0,135.44,135.39,0.8365995]
[1725917583368,8.08709,135.45,135.39,20.8365995]
[1725917583670,8.08709,135.45,135.39,0.8365995]
[1725917584166,8.08709,135.45,135.4,1.47681493]
[1725917584558,8.08709,135.45,135.39,20.8365995]
[1725917585465,20.1856,135.47,135.4,50.0]
[1725917585771,20.1856,135.47,135.41,20.0]
[1725917586763,45.12549,135.46,135.39,20.8365995]
[1725917586965,45.12549,135.46,135.39,0.8365995]
[1725917587560,45.12549,135.46,135.39,20.8365995]
[1725917588157,45.12549,135.46,135.39,0.8365995]
[1725917590669,0.12549,135.44,135.39,0.8365995]
[1725917590861,45.12549,135.44,135.39,0.8365995]
[1725917592681,27.5408,135.45,135.39,0.8365995]
[1725917593954,0.12549,135.44,135.39,0.8365995]
[1725917594255,45.12549,135.44,135.39,0.8365995]
[1725917594559,27.5408,135.45,135.39,0.8365995]
[1725917597583,0.12549,135.43,135.39,0.8365995]
[1725917602168,35.25238239,135.45,135.39,0.8365995]
[1725917603280,57.39238239,135.45,135.39,0.8365995]
[1725917603486,0.12549,135.43,135.39,0.8365995]
[1725917605563,7.71158239,135.45,135.39,0.8365995]
[1725917605864,22.14,135.48,135.39,0.8365995]
[1725917607394,22.26549,135.46,135.39,0.8365995]
[1725917607599,0.12549,135.44,135.39,0.8365995]
[1725917609008,22.14,135.48,135.39,0.8365995]
[1725917610204,0.12549,135.47,135.39,0.8365995]
[1725917610376,0.12549,135.45,135.39,0.8365995]
[1725917610579,67.26549,135.45,135.39,0.8365995]
[1725917610801,22.26549,135.45,135.39,0.8365995]
[1725917611102,0.12549,135.43,135.39,0.8365995]
[1725917611599,0.12549,135.41,135.39,0.8365995]
[1725917611775,45.12549,135.41,135.39,0.8365995]
[1725917613002,67.26549,135.41,135.31,19.9008]
[1725917613206,22.26549,135.41,135.31,19.9008]
[1725917613505,0.12549,135.39,135.31,19.9008]
[1725917616694,0.12549,135.39,135.29,7.6872]
[1725917616889,0.12549,135.37,135.3,20.0]
[1725917617073,67.26549,135.37,135.3,20.0]
[1725917617275,67.26549,135.37,135.26,19.6494]
[1725917618487,45.12549,135.37,135.26,19.6494]
[1725917618692,45.12549,135.37,135.27,20.0]
[1725917619085,67.26549,135.37,135.27,20.0]
[1725917620400,45.0,135.37,135.27,20.0]
[1725917621708,0.12549,135.36,135.27,20.0]
[1725917621879,0.12549,135.36,135.26,19.6494]
[1725917622084,0.12549,135.36,135.27,20.0]
[1725917622302,0.12549,135.36,135.26,20.0]
[1725917623708,0.12549,135.36,135.27,1.47834685]
[1725917624087,0.12549,135.36,135.26,20.0]
[1725917624285,0.12549,135.36,135.26,70.0]
[1725917624486,0.12549,135.36,135.26,20.0]
[1725917625303,0.12549,135.36,135.27,1.47812798]
[1725917625509,0.12549,135.36,135.26,20.0]
[1725917626604,28.234,135.38,135.26,20.0]
[1725917626605,28.234,135.38,135.26,70.0]
[1725917626910,28.234,135.38,135.28,50.0]
[1725917627205,28.234,135.38,135.29,20.0]
[1725917628411,0.12549,135.37,135.29,20.0]
[1725917628706,28.234,135.38,135.29,70.0]
[1725917629391,7.70880537,135.4,135.3,16.05842305]
[1725917629597,8.1199,135.41,135.31,78.4605]
[1725917630686,14.092916,135.42,135.31,78.4605]
[1725917630885,14.092916,135.42,135.33,50.0]
[1725917631308,14.092916,135.42,135.34,1.47734701]
[1725917631608,14.092916,135.42,135.34,42.51064701]
[1725917632183,14.092916,135.42,135.35,50.0]
[1725917632401,8.2542,135.45,135.36,20.0]
[1725917632598,8.2542,135.45,135.34,57.09172305]
[1725917633311,8.2542,135.45,135.35,51.47720795]
[1725917633615,8.2542,135.45,135.36,21.4769686]
[1725917633911,20.5554,135.46,135.36,21.4769686]
[1725917634110,20.5554,135.46,135.36,20.0]
[1725917634717,0.12549,135.44,135.36,20.0]
[1725917635091,20.5554,135.46,135.37,59.77378128]
[1725917635292,7.9141,135.48,135.37,59.77378128]
[1725917635293,7.9141,135.48,135.38,21.47675731]
[1725917635707,22.15922976,135.49,135.38,21.47675731]
[1725917636317,22.15922976,135.49,135.39,50.0]
[1725917636625,22.15922976,135.49,135.4,21.4766642]
[1725917637119,22.15922976,135.49,135.4,20.0]
[1725917637627,1.27822611,135.52,135.43,50.0]
[1725917637923,19.0671,135.53,135.45,50.0]
[1725917638103,40.56839651,135.56,135.46,21.47602346]
[1725917638318,19.0671,135.56,135.46,21.47602346]
[1725917638693,19.0671,135.56,135.47,50.0]
[1725917639022,263.59658478,135.58,135.47,50.0]
[1725917639023,255.9,135.58,135.49,8.2968]
[1725917639222,28.25821656,135.6,135.49,8.2968]
[1725917639603,35.95356443,135.6,135.49,8.2968]
[1725917640108,35.95356443,135.6,135.5,20.0]
[1725917640727,1.27701656,135.6,135.51,66.05842305]
[1725917640901,1.27701656,135.6,135.54,20.4051]
[1725917641096,7.69660203,135.66,135.56,8.2968]
[1725917641307,7.9141,135.67,135.57,21.47485367]
[1725917641522,7.9141,135.67,135.57,20.0]
[1725917642820,19.0671,135.68,135.58,1.47485779]
[1725917643024,19.0671,135.68,135.57,20.0]
[1725917643224,19.0671,135.68,135.58,1.47485791]
[1725917643526,19.0671,135.68,135.57,20.0]
[1725917643826,7.69167233,135.71,135.6,50.0]
[1725917644013,284.219,135.74,135.62,85.86252305]
[1725917644231,7.688689,135.74,135.63,27.8648]
[1725917644523,7.688689,135.74,135.63,7.8648]
[1725917644734,7.688689,135.74,135.59,7.8648]
[1725917645023,1.27542604,135.75,135.6,21.47452105]
[1725917645229,0.12549,135.71,135.6,20.0]
[1725917645646,20.12549,135.71,135.6,20.0]
[1725917645931,0.12549,135.69,135.6,20.0]
[1725917647134,0.8365995,135.72,135.6,20.0]
[1725917647839,20.8365995,135.72,135.6,20.0]
[1725917648531,45.12549,135.71,135.6,20.0]
[1725917650637,52.95589,135.71,135.6,20.0]
[1725917652616,0.12549,135.69,135.6,20.0]
[1725917652812,45.12549,135.69,135.6,20.0]
[1725917655248,28.5496,135.71,135.61,1.47475376]
[1725917655431,0.8365995,135.72,135.61,17.53317681]
[1725917655633,0.8365995,135.72,135.62,20.0]
[1725917656245,0.8365995,135.72,135.6,20.0]
[1725917657734,0.12549,135.71,135.6,20.0]
[1725917658423,45.12549,135.71,135.6,20.0]
[1725917659550,0.8365995,135.72,135.63,16.05842305]
[1725917659759,0.8365995,135.72,135.66,7.6337]
[1725917660054,0.8365995,135.72,135.66,9.10758115]
[1725917660551,0.8365995,135.72,135.67,20.0]
[1725917660961,0.8365995,135.72,135.66,7.6337]
[1725917662448,0.12549,135.71,135.66,7.6337]
[1725917663024,0.12549,135.71,135.64,20.2023]
[1725917663234,0.12549,135.71,135.62,8.137]
[1725917664654,0.12549,135.71,135.63,20.0]
[1725917665362,0.8365995,135.72,135.65,16.05842305]
[1725917665571,0.8365995,135.72,135.66,21.47383267]
[1725917666146,0.8365995,135.72,135.66,20.0]
[1725917666544,0.8365995,135.72,135.67,1.47391679]
[1725917666739,0.8365995,135.72,135.66,20.0]
[1725917666956,0.8365995,135.72,135.67,1.47382624]
[1725917667560,0.8365995,135.72,135.66,20.0]
[1725917667730,0.12549,135.71,135.65,20.0]
[1725917668038,0.12549,135.71,135.62,58.137]
[1725917668039,0.12549,135.71,135.63,20.0]
[1725917669129,0.12549,135.71,135.62,8.137]
[1725917669548,19.79499,135.71,135.62,8.137]
[1725917669859,0.12549,135.69,135.62,8.137]
[1725917670753,0.12549,135.69,135.63,20.0]
[1725917671059,0.12549,135.69,135.57,27.0489]
[1725917671246,20.12549,135.69,135.57,27.0489]
[1725917671562,0.12549,135.67,135.57,27.0489]
[1725917672241,0.12549,135.67,135.53,29.76498757]
[1725917672557,20.12549,135.67,135.53,37.96278757]
[1725917672856,0.12549,135.65,135.53,37.96278757]
[1725917673031,71.94435469,135.65,135.53,37.96278757]
[1725917673229,0.12549,135.63,135.53,37.96278757]
[1725917673931,0.12549,135.63,135.53,29.0694]
[1725917674547,0.12549,135.63,135.53,8.1978]
[1725917674783,0.12549,135.61,135.53,8.1978]
[1725917675057,45.12549,135.61,135.53,8.1978]
[1725917675358,45.12549,135.61,135.54,20.0]
[1725917676337,45.12549,135.61,135.5,37.09018757]
[1725917676538,0.12549,135.59,135.5,28.1968]
[1725917676760,45.12549,135.59,135.5,28.1968]
[1725917677559,45.12549,135.59,135.51,20.0]
[1725917678164,45.12549,135.59,135.51,70.0]
[1725917679252,45.12549,135.59,135.51,78.89338757]
[1725917679638,27.9897,135.64,135.53,50.0]
[1725917679961,45.0,135.63,135.54,20.0]
[1725917680762,45.0,135.63,135.53,50.0]
[1725917680936,0.12549,135.62,135.54,20.0]
[1725917682266,27.9897,135.64,135.55,50.0]
[1725917682267,19.5948,135.64,135.55,50.0]
[1725917682561,19.5948,135.64,135.56,20.0]
[1725917683360,45.0,135.63,135.56,20.0]
[1725917683559,45.0,135.63,135.54,20.0]
[1725917683945,0.12549,135.62,135.55,50.0]
[1725917684159,45.0,135.63,135.56,20.0]
[1725917686268,0.12549,135.62,135.51,8.89338757]
[1725917686469,0.12549,135.62,135.5,78.1968]
[1725917687342,0.12549,135.63,135.52,50.0]
[1725917687551,19.5948,135.64,135.55,50.0]
[1725917687743,19.5948,135.64,135.56,20.0]
[1725917688058,19.5948,135.64,135.53,78.89338757]
[1725917688853,0.12549,135.62,135.53,78.89338757]
[1725917691648,0.12549,135.62,135.53,28.89338757]
[1725917691978,0.12549,135.62,135.53,20.0]
[1725917692273,0.12549,135.62,135.52,20.0]
[1725917693155,45.0,135.63,135.55,50.0]
[1725917693347,19.5948,135.64,135.56,21.4748179]
[1725917693546,19.5948,135.64,135.56,20.0]
[1725917693962,19.5948,135.64,135.54,20.0]
[1725917694971,0.12549,135.62,135.54,20.0]
[1725917696156,0.12549,135.62,135.51,50.0]
[1725917696362,0.12549,135.62,135.51,58.89338757]
[1725917697684,0.12549,135.62,135.52,20.0]
[1725917698354,0.12549,135.6,135.52,20.0]
[1725917698690,0.12549,135.58,135.51,20.0]
[1725917698857,45.12549,135.58,135.47,58.89338757]
[1725917699367,45.12549,135.58,135.49,50.0]
[1725917699564,45.12549,135.58,135.48,8.89338757]
[1725917699766,45.12549,135.58,135.49,50.0]
[1725917701167,45.12549,135.58,135.5,20.0]
[1725917701376,19.849,135.59,135.51,50.0]
[1725917701677,7.9748,135.61,135.54,50.0]
[1725917701851,7.9748,135.61,135.55,20.0]
[1725917702670,7.9748,135.61,135.56,1.47503439]
[1725917702860,19.849,135.62,135.56,1.47503439]
[1725917703181,19.849,135.62,135.55,20.0]
[1725917703387,19.849,135.62,135.54,20.0]
[1725917704187,19.849,135.62,135.55,51.47503149]
[1725917704680,19.849,135.62,135.56,20.0]
[1725917706086,0.12549,135.63,135.56,20.0]
[1725917706087,0.12549,135.63,135.57,1.47474415]
[1725917706282,8.4452,135.64,135.58,1.47460298]
[1725917706592,8.4452,135.64,135.58,20.0]
[1725917707761,8.4452,135.64,135.56,20.0]
[1725917708064,0.12549,135.63,135.56,20.0]
[1725917709406,0.12549,135.63,135.56,70.0]
[1725917709703,0.12549,135.63,135.56,20.0]
[1725917709857,0.12549,135.63,135.55,20.0]
[1725917710260,0.12549,135.63,135.53,20.0]
[1725917710261,45.12549,135.63,135.53,20.0]
[1725917714403,45.12549,135.63,135.53,70.0]
[1725917716080,45.12549,135.63,135.53,20.0]
[1725917716284,45.12549,135.63,135.52,20.0]
[1725917717086,20.2194,135.62,135.5,8.89338757]
[1725917717280,45.12549,135.61,135.49,8.14025008]
[1725917717483,0.12549,135.59,135.47,50.0]
[1725917717666,0.12549,135.57,135.47,50.0]
[1725917717872,45.12549,135.57,135.47,58.89338757]
[1725917718587,45.12549,135.57,135.48,20.0]
[1725917719565,45.12549,135.57,135.47,8.89338757]
[1725917719760,45.12549,135.57,135.45,50.0]
[1725917719761,7.9026,135.56,135.45,50.0]
[1725917719979,0.12549,135.54,135.45,50.0]
[1725917721368,3.03235734,135.6,135.51,50.0]
[1725917721568,19.2879,135.62,135.52,20.0]
[1725917721772,26.98058887,135.62,135.52,20.0]
[1725917721991,19.2879,135.62,135.52,20.0]
[1725917724670,0.12549,135.6,135.52,20.0]
[1725917728499,0.12549,135.6,135.49,7.6914]
[1725917728679,0.12549,135.6,135.48,20.7636]
[1725917728884,20.12549,135.6,135.48,70.7636]
[1725917729200,0.12549,135.6,135.48,70.7636]
[1725917729986,0.12549,135.6,135.48,20.7636]
[1725917730573,0.12549,135.58,135.46,58.1916]
[1725917730775,65.12549,135.58,135.46,58.1916]
[1725917732180,65.12549,135.58,135.47,20.0]
[1725917732691,72.81974376,135.58,135.47,20.0]
[1725917732900,0.12549,135.56,135.47,20.0]
[1725917733104,45.12549,135.56,135.47,20.0]
[1725917734888,45.12549,135.56,135.45,20.0]
[1725917734889,8.3722,135.55,135.45,20.0]
[1725917735080,45.12549,135.54,135.45,20.0]
[1725917735310,0.12549,135.52,135.44,9.83227646]
[1725917735486,45.12549,135.52,135.42,8.4453]
[1725917735803,45.12549,135.52,135.43,50.0]
[1725917736200,45.12549,135.52,135.42,8.4453]
[1725917736704,45.12549,135.52,135.43,50.0]
[1725917737602,45.12549,135.52,135.44,20.0]
[1725917738100,45.12549,135.52,135.45,1.47606033]
[1725917738484,45.12549,135.52,135.46,1.47601407]
[1725917740685,20.3183,135.53,135.46,1.47601407]
[1725917741030,20.3183,135.53,135.45,50.0]
[1725917741182,20.3183,135.53,135.46,20.0]
[1725917742105,0.12549,135.52,135.46,20.0]
[1725917743331,45.12549,135.52,135.43,20.0]
[1725917744633,20.3183,135.53,135.45,50.0]
[1725917744930,20.3183,135.53,135.43,20.0]
[1725917744931,20.3183,135.53,135.43,70.0]
[1725917745121,20.3183,135.53,135.43,20.0]
[1725917745436,20.3183,135.53,135.42,20.0]
[1725917745919,0.12549,135.52,135.42,20.0]
[1725917746127,45.12549,135.52,135.4,20.0]
[1725917746429,7.9208,135.51,135.4,20.0]
[1725917746732,0.12549,135.49,135.4,20.0]
[1725917747428,0.12549,135.47,135.39,9.83227646]
[1725917747629,0.12549,135.47,135.37,50.0]
[1725917747837,45.12549,135.47,135.37,50.0]
[1725917748538,0.12549,135.45,135.35,87.57847646]
[1725917748840,45.12549,135.45,135.35,87.57847646]
[1725917749207,45.12549,135.45,135.37,50.0]
[1725917749827,45.12549,135.45,135.36,9.83227646]
[1725917750413,19.2197,135.44,135.35,50.0]
[1725917750614,0.12549,135.43,135.35,50.0]
[1725917751017,45.12549,135.43,135.35,50.0]
[1725917752425,45.12549,135.43,135.33,59.83227646]
[1725917753614,45.12549,135.43,135.34,20.0]
[1725917754721,7.7171,135.42,135.34,20.0]
[1725917754929,7.7171,135.42,135.3,58.14025008]
[1725917754930,45.12549,135.41,135.3,58.14025008]
[1725917755820,45.12549,135.41,135.32,50.0]
[1725917756446,45.12549,135.41,135.33,20.0]
[1725917756945,45.12549,135.41,135.3,67.97252654]
[1725917756946,45.12549,135.41,135.31,20.0]
[1725917759951,0.12549,135.39,135.31,20.0]
[1725917760152,45.12549,135.39,135.31,20.0]
[1725917760840,45.12549,135.39,135.3,9.83227646]
[1725917761044,45.12549,135.39,135.28,50.0]
[1725917761246,7.6848,135.38,135.26,67.97252654]
[1725917761454,45.12549,135.37,135.28,50.0]
[1725917761754,45.12549,135.37,135.31,50.0]
[1725917762001,21.117,135.4,135.29,9.83227646]
[1725917762002,21.117,135.4,135.34,50.0]
[1725917762251,19.8266,135.44,135.38,50.0]
[1725917762562,8.1044,135.45,135.4,50.0]
[1725917762866,19.8266,135.48,135.41,1.47647131]
[1725917763165,19.8266,135.48,135.43,50.0]
[1725917763453,19.8266,135.48,135.44,21.47628931]
[1725917764058,27.4824,135.52,135.44,20.0]
[1725917764759,19.7953,135.52,135.46,50.0]
[1725917764967,28.6691,135.55,135.46,50.0]
[1725917765154,28.6691,135.55,135.47,20.0]
[1725917765774,28.6691,135.55,135.45,20.0]
[1725917765952,28.6691,135.55,135.44,20.0]
[1725917766150,28.6691,135.55,135.43,20.0]
[1725917766968,0.12549,135.53,135.43,20.0]
[1725917767678,0.12549,135.51,135.43,20.0]
[1725917767975,45.12549,135.51,135.43,20.0]
[1725917770476,0.12549,135.49,135.43,20.0]
[1725917770659,45.12549,135.49,135.41,20.0]
[1725917770854,45.12549,135.49,135.4,50.0]
[1725917771070,0.12549,135.47,135.38,50.0]
[1725917771350,45.12549,135.47,135.38,50.0]
[1725917772977,0.12549,135.47,135.38,50.0]
[1725917773178,45.12549,135.47,135.38,50.0]
[1725917773391,0.12549,135.47,135.38,50.0]
[1725917773681,0.12549,135.47,135.35,29.41065562]
[1725917773682,0.12549,135.47,135.4,50.0]
[1725917774670,0.12549,135.47,135.41,20.0]
[1725917775255,45.12549,135.47,135.41,20.0]
[1725917775857,45.12549,135.47,135.39,20.0]
[1725917780768,28.1532,135.46,135.39,20.0]
[1725917780962,21.0671,135.44,135.34,50.0]
[1725917781164,45.12549,135.43,135.34,50.0]
[1725917783575,45.12549,135.43,135.35,20.0]
[1725917784087,45.12549,135.43,135.33,20.0]
[1725917786186,0.12549,135.41,135.33,20.0]
[1725917786485,45.12549,135.41,135.31,20.0]
[1725917788669,45.12549,135.41,135.32,50.0]
[1725917788871,45.12549,135.41,135.33,20.0]
[1725917789479,45.12549,135.41,135.31,20.0]
[1725917789690,0.12549,135.39,135.28,66.68914313]
[1725917789893,45.12549,135.39,135.28,66.68914313]
[1725917790477,45.12549,135.39,135.3,50.0]
[1725917791101,45.12549,135.39,135.31,20.0]
[1725917791400,0.12549,135.37,135.31,20.0]
[1725917791572,45.12549,135.37,135.29,70.0]
[1725917795504,45.12549,135.37,135.28,8.84904313]
[1725917795802,45.12549,135.37,135.25,50.8365995]
[1725917795803,0.12549,135.35,135.25,50.8365995]
[1725917796006,45.12549,135.35,135.25,0.8365995]
[1725917796599,0.12549,135.32,135.25,0.8365995]
[1725917796804,45.12549,135.32,135.25,0.8365995]
[1725917797908,45.12549,135.32,135.25,20.8365995]
[1725917800286,0.12549,135.3,135.25,20.8365995]
[1725917800592,45.12549,135.3,135.25,0.8365995]
[1725917800799,0.12549,135.28,135.25,0.8365995]
[1725917801314,45.12549,135.28,135.25,0.8365995]
[1725917801482,0.12549,135.26,135.25,0.8365995]
[1725917801681,45.12549,135.26,135.25,0.8365995]
[1725917801896,45.12549,135.26,135.18,50.0]
[1725917802201,45.12549,135.26,135.17,50.0]
[1725917803179,0.12549,135.24,135.16,50.0]
[1725917803386,45.12549,135.24,135.16,50.0]
[1725917804097,45.12549,135.24,135.17,20.0]
[1725917804518,0.12549,135.24,135.17,20.0]
[1725917804813,19.7574,135.23,135.17,20.0]
[1725917805810,19.7574,135.23,135.18,51.47897839]
[1725917806013,19.7574,135.23,135.19,20.0]
[1725917807029,20.0117,135.27,135.2,51.47885179]
[1725917807187,20.0117,135.27,135.21,20.0]
[1725917808511,0.12549,135.26,135.21,20.0]
[1725917809409,20.0117,135.27,135.21,20.0]
[1725917810517,0.12549,135.26,135.21,20.0]
[1725917810724,0.12549,135.26,135.19,20.0]
[1725917811021,20.0117,135.27,135.2,50.0]
[1725917811324,20.0117,135.27,135.21,21.47859484]
[1725917811526,20.0117,135.27,135.21,20.0]
[1725917812319,20.5545,135.31,135.25,50.0]
[1725917812491,20.5545,135.31,135.26,21.47816771]
[1725917812696,20.5545,135.31,135.26,20.0]
[1725917813111,20.5545,135.31,135.24,20.0]
[1725917813701,20.5545,135.31,135.25,51.47821897]
[1725917813912,20.5545,135.31,135.26,20.0]
[1725917814126,20.5545,135.31,135.27,1.47817724]
[1725917814503,29.1067,135.37,135.27,1.47817724]
[1725917814702,45.0,135.36,135.28,1.47817716]
[1725917814927,45.0,135.36,135.26,20.0]
[1725917815114,45.0,135.36,135.21,16.06803829]
[1725917815115,45.0,135.36,135.27,1.47817975]
[1725917815908,0.12549,135.35,135.26,20.0]
[1725917817504,27.7093,135.34,135.26,20.0]
[1725917817710,45.12549,135.33,135.24,20.0]
[1725917818725,45.12549,135.33,135.25,50.0]
[1725917819029,45.12549,135.33,135.26,20.0]
[1725917819240,45.12549,135.33,135.27,1.47817954]
[1725917819398,45.12549,135.33,135.26,20.0]
[1725917821015,45.12549,135.33,135.25,50.0]
[1725917821330,45.12549,135.33,135.26,20.0]